Workbook

Sheet Sheet1
A1: Date | B1: Date | M1: 数据1 | N1: 数据2 | O1: 数据3 | P1: 数据4 | Q1: 数据5
A2: 2025-06-13 20:40:22:577 | B2: 2025-06-13 20:41:29:828 | L2: 项目名称 | M2: =A6 -> hsCRP | N2: hsCRP | O2: 0 | P2: 0 | Q2: 0
A3: userId | B3: userId | L3: 光学类型 | M3: =A12 -> FOPT | N3: FOPT | O3: 0 | P3: 0 | Q3: 0
A4: 250613_1201 | B4: 250613_1201
A5: ProjName | B5: ProjName
A6: hsCRP | B6: hsCRP | L6: T4位置 | M6: ="("&A24&","&A26&","&A25&")" -> (,,) | N6: (,,) | O6: (,,) | P6: (,,) | Q6: (,,)
A7: ProjId | B7: ProjId | L7: T4面积 | M7: =A27 -> 0 | N7: 0 | O7: 0 | P7: 0 | Q7: 0
A8: 1 | B8: 1 | L8: R位置 | M8: ="("&A29&","&A31&","&A30&")" -> (,,) | N8: (,,) | O8: (,,) | P8: (,,) | Q8: (,,)
A9: SubProjName | B9: SubProjName | L9: R面积 | M9: =A32 -> 0 | N9: 0 | O9: 0 | P9: 0 | Q9: 0
A10: hsCRP | B10: hsCRP | L10: H位置 | M10: ="("&A34&","&A36&","&A35&")" -> (26,43,52) | N10: (30,40,48) | O10: (,,) | P10: (,,) | Q10: (,,)
A11: OptType | B11: OptType | L11: H面积 | M11: =A37 -> 1407.89 | N11: 995.11 | O11: 0 | P11: 0 | Q11: 0
A12: FOPT | B12: FOPT | L12: T位置 | M12: ="("&A39&","&A41&","&A40&")" -> (66,79,90) | N12: (62,75,87) | O12: (,,) | P12: (,,) | Q12: (,,)
A13: lasterGain | B13: lasterGain | L13: T面积 | M13: =A42 -> 35219.37 | N13: 35311.26 | O13: 0 | P13: 0 | Q13: 0
A14: 190 | B14: 190 | L14: C位置 | M14: ="("&A44&","&A46&","&A45&")" -> (115,123,131) | N14: (112,120,128) | O14: (,,) | P14: (,,) | Q14: (,,)
A15: scanerGain | B15: scanerGain | L15: C面积 | M15: =A47 -> 2134.03 | N15: 2068.88 | O15: 0 | P15: 0 | Q15: 0
A16: 8 | B16: 8
A17: Result(mg/L) | B17: Result(ERROR)
A18: 173.9814 | B18: 0 | L18: R(T/C) | M18: =A50 -> 16.5 | N18: 17.07 | O18: 0 | P18: 0 | Q18: 0
L19: AR(H/C) | M19: =A52 -> 0.66 | N19: 0.48 | O19: 0 | P19: 0 | Q19: 0
L20: ATR(T/H) | M20: =A54 -> 25.02 | N20: =$B$54 -> 35.48 | O20: =C54 -> 0 | P20: =$B$54 -> 35.48 | Q20: =E54 -> 0
L21: RFR(R/C) | M21: =$A$56 -> nu | N21: nu | O21: nu | P21: nu | Q21: nu
L22: T4R(T4/C) | M22: =$A$58 -> nu | N22: nu | O22: nu | P22: nu | Q22: nu
A23: T4 | B23: T4 | L23: T4T3R(R/T4) | M23: =$A$60 -> nu | N23: nu | O23: nu | P23: nu | Q23: nu
L24: Result | M24: =A18 -> 173.9814 | N24: =B18 -> 0 | O24: 0 | P24: 0 | Q24: 0
A28: R | B28: R | M28: AVG | N28: STD | O28: CV | Q28: 偏差
L29: R(T/C) | M29: =AVERAGE(M18:Q18) -> 6.714 | N29: =STDEV(M18:Q18) -> 9.195731619 | O29: =N29/M29 -> 1.369635332 | P29: 0.99 | Q29: =M29/P29-1 -> 5.781818182
L30: AR(H/C) | M30: =AVERAGE(M19:Q19) -> 0.228 | N30: =STDEV(M19:Q19) -> 0.3186220331 | O30: 1.397465058 | P30: 1.25 | Q30: =M30/P30-1 -> -0.8176
L31: ATR(T/H) | M31: =AVERAGE(M20:Q20) -> 19.196 | N31: =STDEV(M20:Q20) -> 18.03627678 | O31: 0.9395851624 | P31: 0.79 | Q31: 23.29873418
L32: RFR(R/C) | M32: =AVERAGE(M21:V21) ->  | N32: =STDEV(M21:V21) -> 
A33: H | B33: H | L33: T4R(T4/C)
A34: 26 | B34: 30 | L34: T4T3R(R/T4)
A35: 52 | B35: 48 | L35: Result | M35: 34.79628 | N35: 77.80684744 | O35: 2.236067977
A36: 43 | B36: 40
A37: 1407.89 | B37: 995.11
A38: T | B38: T
A39: 66 | B39: 62
A40: 90 | B40: 87
A41: 79 | B41: 75
A42: 35219.37 | B42: 35311.26
A43: C | B43: C
A44: 115 | B44: 112
A45: 131 | B45: 128
A46: 123 | B46: 120
A47: 2134.03 | B47: 2068.88
A49: R(T/C) | B49: R(T/C)
A50: 16.5 | B50: 17.07
A51: AR(H/C) | B51: AR(H/C)
A52: 0.66 | B52: 0.48
A53: ATR(T/H) | B53: ATR(T/H)
A54: 25.02 | B54: 35.48
A55: RFR(R/C) | B55: RFR(R/C)
A56: nu | B56: nu
A57: T4R(T4/C) | B57: T4R(T4/C)
A58: nu | B58: nu
A59: T4T3R(R/T4) | B59: T4T3R(R/T4)
A60: nu | B60: nu
A62: AfterAnalysPoint(250) | B62: AfterAnalysPoint(250)
A63: 142.83 | B63: 142.17
A64: 163.01 | B64: 162.21
A65: 163.21 | B65: 162.42
A66: 163.21 | B66: 162
A67: 162.58 | B67: 162
A68: 162.95 | B68: 162.05
A69: 162.22 | B69: 162.16
A70: 162.42 | B70: 161.83
A71: 162.62 | B71: 161
A72: 162.63 | B72: 161.63
A73: 162.83 | B73: 161.26
A74: 162.63 | B74: 161.78
A75: 163 | B75: 162
A76: 163 | B76: 162
A77: 162.5 | B77: 162
A78: 162.21 | B78: 161.54
A79: 162 | B79: 161.23
A80: 162.37 | B80: 161.18
A81: 162.05 | B81: 161
A82: 161.79 | B82: 161.29
A83: 162.21 | B83: 161.79
A84: 162.03 | B84: 162.63
A85: 162.76 | B85: 163.38
A86: 162.59 | B86: 164.95
A87: 163.5 | B87: 166.21
A88: 164.26 | B88: 168.38
A89: 165.41 | B89: 171.72
A90: 166.96 | B90: 176.83
A91: 168.88 | B91: 184.46
A92: 171.79 | B92: 193.42
A93: 175.68 | B93: 200.73
A94: 182.13 | B94: 209.54
A95: 190.88 | B95: 217.88
A96: 200.02 | B96: 227.48
A97: 207.71 | B97: 238
A98: 216.27 | B98: 250.78
A99: 226.2 | B99: 265.3
A100: 236.77 | B100: 281.03
A101: 248.6 | B101: 297.64
A102: 262.67 | B102: 312.5
A103: 278.83 | B103: 321.44
A104: 295.08 | B104: 305.63
A105: 311.96 | B105: 257.47
A106: 323.92 | B106: 227.16
A107: 318.54 | B107: 207.67
A108: 275.32 | B108: 195.4
A109: 239 | B109: 186.63
A110: 217.38 | B110: 180.13
A111: 202.31 | B111: 175.63
A112: 191.29 | B112: 172.29
A113: 184.11 | B113: 170.08
A114: 178.77 | B114: 169.01
A115: 175.25 | B115: 168.42
A116: 173.33 | B116: 168.74
A117: 171.79 | B117: 169
A118: 171.8 | B118: 169.92
A119: 171.78 | B119: 171.2
A120: 171.38 | B120: 172.54
A121: 172 | B121: 174.54
A122: 172.79 | B122: 177.29
A123: 173.79 | B123: 182.55
A124: 175.88 | B124: 190.62
A125: 178.92 | B125: 203.38
A126: 184.03 | B126: 225.91
A127: 190.79 | B127: 267.96
A128: 201.8 | B128: 341.7
A129: 221.24 | B129: 483.83
A130: 255.35 | B130: 743.73
A131: 320.53 | B131: 1149.45
A132: 435.38 | B132: 1631.54
A133: 660.29 | B133: 2145.24
A134: 1000.05 | B134: 2614.48
A135: 1442.32 | B135: 2995.38
A136: 1926.68 | B136: 3250.94
A137: 2413.88 | B137: 3393.13
A138: 2846.58 | B138: 3446.74
A139: 3157.67 | B139: 3401.33
A140: 3351.83 | B140: 3215.01
A141: 3447.72 | B141: 2911.88
A142: 3454.92 | B142: 2491.33
A143: 3348.92 | B143: 2014.5
A144: 3088.03 | B144: 1488.77
A145: 2720.55 | B145: 1045.25
A146: 2245.17 | B146: 746.73
A147: 1740.17 | B147: 555.17
A148: 1242.02 | B148: 429.89
A149: 871.32 | B149: 347.07
A150: 642.62 | B150: 294.95
A151: 489.77 | B151: 261.59
A152: 388.88 | B152: 241.46
A153: 319.8 | B153: 228.87
A154: 276.72 | B154: 221.48
A155: 248.76 | B155: 217.07
A156: 233.51 | B156: 214.5
A157: 224 | B157: 212.79
A158: 217.75 | B158: 211.08
A159: 214.33 | B159: 209.17
A160: 211.83 | B160: 208.79
A161: 210.25 | B161: 208.67
A162: 208.79 | B162: 208.21
A163: 208 | B163: 208.21
A164: 208 | B164: 208
A165: 207.78 | B165: 208.17
A166: 207.26 | B166: 208.79
A167: 207.5 | B167: 209.08
A168: 208 | B168: 210.71
A169: 207.82 | B169: 213.46
A170: 208.13 | B170: 216.55
A171: 208.72 | B171: 220.58
A172: 210.79 | B172: 224.71
A173: 214.05 | B173: 228.84
A174: 217.87 | B174: 233.08
A175: 221.92 | B175: 238.1
A176: 226.28 | B176: 245.98
A177: 230.79 | B177: 257.38
A178: 235.82 | B178: 276.7
A179: 242.29 | B179: 310.19
A180: 252.6 | B180: 366.07
A181: 269.25 | B181: 461
A182: 299 | B182: 611.04
A183: 354.17 | B183: 667.68
A184: 441.99 | B184: 513.86
A185: 598.46 | B185: 406.73
A186: 698.26 | B186: 346.02
A187: 550.63 | B187: 302.04
A188: 430.58 | B188: 271.05
A189: 360.27 | B189: 248.4
A190: 312.28 | B190: 233.24
A191: 278.62 | B191: 222.73
A192: 254.08 | B192: 216.17
A193: 236.34 | B193: 212.28
A194: 224.26 | B194: 210.23
A195: 217.1 | B195: 209.04
A196: 213.38 | B196: 208
A197: 211.29 | B197: 207.92
A198: 209.92 | B198: 207
A199: 209.18 | B199: 207.02
A200: 208.6 | B200: 207.19
A201: 208.33 | B201: 206.87
A202: 207.88 | B202: 206
A203: 207.95 | B203: 205.78
A204: 207.22 | B204: 205.78
A205: 207.27 | B205: 205.65
... 1308 more rows

Sheet Sheet2
A1: 142.17 | B1: 0 | C1: 0 | D1: 0
A2: 162.21 | B2: =A2-A1 -> 20.04 | C2: 0 | D2: 0
A3: 162.42 | B3: =A3-A2 -> 0.21 | C3: =B3-B2 -> -19.83 | D3: 0
A4: 162 | B4: -0.42 | C4: -0.63 | D4: =C4-C3 -> 19.2
A5: 162 | B5: 0 | C5: 0.42 | D5: 1.05
A6: 162.05 | B6: 0.05 | C6: 0.05 | D6: -0.37
A7: 162.16 | B7: 0.11 | C7: 0.06 | D7: 0.01
A8: 161.83 | B8: -0.33 | C8: -0.44 | D8: -0.5
A9: 161 | B9: -0.83 | C9: -0.5 | D9: -0.06
A10: 161.63 | B10: 0.63 | C10: 1.46 | D10: 1.96
A11: 161.26 | B11: -0.37 | C11: -1 | D11: -2.46
A12: 161.78 | B12: 0.52 | C12: 0.89 | D12: 1.89
A13: 162 | B13: 0.22 | C13: -0.3 | D13: -1.19
A14: 162 | B14: 0 | C14: -0.22 | D14: 0.08
A15: 162 | B15: 0 | C15: 0 | D15: 0.22
A16: 161.54 | B16: -0.46 | C16: -0.46 | D16: -0.46
A17: 161.23 | B17: -0.31 | C17: 0.15 | D17: 0.61
A18: 161.18 | B18: -0.05 | C18: 0.26 | D18: 0.11
A19: 161 | B19: -0.18 | C19: -0.13 | D19: -0.39
A20: 161.29 | B20: 0.29 | C20: 0.47 | D20: 0.6
A21: 161.79 | B21: 0.5 | C21: 0.21 | D21: -0.26
A22: 162.63 | B22: 0.84 | C22: 0.34 | D22: 0.13
A23: 163.38 | B23: 0.75 | C23: -0.09 | D23: -0.43
A24: 164.95 | B24: 1.57 | C24: 0.82 | D24: 0.91
A25: 166.21 | B25: 1.26 | C25: -0.31 | D25: -1.13
A26: 168.38 | B26: 2.17 | C26: 0.91 | D26: 1.22
A27: 171.72 | B27: 3.34 | C27: 1.17 | D27: 0.26
A28: 176.83 | B28: 5.11 | C28: 1.77 | D28: 0.6
A29: 184.46 | B29: 7.63 | C29: 2.52 | D29: 0.75
A30: 193.42 | B30: 8.96 | C30: 1.33 | D30: -1.19
A31: 200.73 | B31: 7.31 | C31: -1.65 | D31: -2.98
A32: 209.54 | B32: 8.81 | C32: 1.5 | D32: 3.15
A33: 217.88 | B33: 8.34 | C33: -0.47 | D33: -1.97
A34: 227.48 | B34: 9.6 | C34: 1.26 | D34: 1.73
A35: 238 | B35: 10.52 | C35: 0.92 | D35: -0.34
A36: 250.78 | B36: 12.78 | C36: 2.26 | D36: 1.34
A37: 265.3 | B37: 14.52 | C37: 1.74 | D37: -0.52
A38: 281.03 | B38: 15.73 | C38: 1.21 | D38: -0.53
A39: 297.64 | B39: 16.61 | C39: 0.88 | D39: -0.33
A40: 312.5 | B40: 14.86 | C40: -1.75 | D40: -2.63
A41: 321.44 | B41: 8.94 | C41: -5.92 | D41: -4.17
A42: 305.63 | B42: -15.81 | C42: -24.75 | D42: -18.83
A43: 257.47 | B43: -48.16 | C43: -32.35 | D43: -7.6
A44: 227.16 | B44: -30.31 | C44: 17.85 | D44: 50.2
A45: 207.67 | B45: -19.49 | C45: 10.82 | D45: -7.03
A46: 195.4 | B46: -12.27 | C46: 7.22 | D46: -3.6
A47: 186.63 | B47: -8.77 | C47: 3.5 | D47: -3.72
A48: 180.13 | B48: -6.5 | C48: 2.27 | D48: -1.23
A49: 175.63 | B49: -4.5 | C49: 2 | D49: -0.27
A50: 172.29 | B50: -3.34 | C50: 1.16 | D50: -0.84
A51: 170.08 | B51: -2.21 | C51: 1.13 | D51: -0.03
A52: 169.01 | B52: -1.07 | C52: 1.14 | D52: 0.01
A53: 168.42 | B53: -0.59 | C53: 0.48 | D53: -0.66
A54: 168.74 | B54: 0.32 | C54: 0.91 | D54: 0.43
A55: 169 | B55: 0.26 | C55: -0.06 | D55: -0.97
A56: 169.92 | B56: 0.92 | C56: 0.66 | D56: 0.72
A57: 171.2 | B57: 1.28 | C57: 0.36 | D57: -0.3
A58: 172.54 | B58: 1.34 | C58: 0.06 | D58: -0.3
A59: 174.54 | B59: 2 | C59: 0.66 | D59: 0.6
A60: 177.29 | B60: 2.75 | C60: 0.75 | D60: 0.09
A61: 182.55 | B61: 5.26 | C61: 2.51 | D61: 1.76
A62: 190.62 | B62: 8.07 | C62: 2.81 | D62: 0.3
A63: 203.38 | B63: 12.76 | C63: 4.69 | D63: 1.88
A64: 225.91 | B64: 22.53 | C64: 9.77 | D64: 5.08
A65: 267.96 | B65: 42.05 | C65: 19.52 | D65: 9.75
A66: 341.7 | B66: 73.74 | C66: 31.69 | D66: 12.17
A67: 483.83 | B67: =A67-A66 -> 142.13 | C67: 68.39 | D67: 36.7
A68: 743.73 | B68: 259.9 | C68: 117.77 | D68: 49.38
A69: 1149.45 | B69: 405.72 | C69: 145.82 | D69: 28.05
A70: 1631.54 | B70: 482.09 | C70: 76.37 | D70: -69.45
A71: 2145.24 | B71: 513.7 | C71: 31.61 | D71: -44.76
A72: 2614.48 | B72: 469.24 | C72: -44.46 | D72: -76.07
A73: 2995.38 | B73: 380.9 | C73: -88.34 | D73: -43.88
A74: 3250.94 | B74: 255.56 | C74: -125.34 | D74: -37
A75: 3393.13 | B75: 142.19 | C75: -113.37 | D75: 11.97
A76: 3446.74 | B76: 53.61 | C76: -88.58 | D76: 24.79
A77: 3401.33 | B77: -45.41 | C77: -99.02 | D77: -10.44
A78: 3215.01 | B78: -186.32 | C78: -140.91 | D78: -41.89
A79: 2911.88 | B79: -303.13 | C79: -116.81 | D79: 24.1
A80: 2491.33 | B80: -420.55 | C80: -117.42 | D80: -0.61
A81: 2014.5 | B81: -476.83 | C81: -56.28 | D81: 61.14
A82: 1488.77 | B82: -525.73 | C82: -48.9 | D82: 7.38
A83: 1045.25 | B83: -443.52 | C83: 82.21 | D83: 131.11
A84: 746.73 | B84: -298.52 | C84: 145 | D84: 62.79
A85: 555.17 | B85: -191.56 | C85: 106.96 | D85: -38.04
A86: 429.89 | B86: -125.28 | C86: 66.28 | D86: -40.68
A87: 347.07 | B87: -82.82 | C87: 42.46 | D87: -23.82
A88: 294.95 | B88: -52.12 | C88: 30.7 | D88: -11.76
A89: 261.59 | B89: -33.36 | C89: 18.76 | D89: -11.94
A90: 241.46 | B90: -20.13 | C90: 13.23 | D90: -5.53
A91: 228.87 | B91: -12.59 | C91: 7.54 | D91: -5.69
A92: 221.48 | B92: -7.39 | C92: 5.2 | D92: -2.34
A93: 217.07 | B93: -4.41 | C93: 2.98 | D93: -2.22
A94: 214.5 | B94: -2.57 | C94: 1.84 | D94: -1.14
A95: 212.79 | B95: -1.71 | C95: 0.86 | D95: -0.98
A96: 211.08 | B96: -1.71 | C96: 2.842170943e-14 | D96: -0.86
A97: 209.17 | B97: -1.91 | C97: -0.2 | D97: -0.2
A98: 208.79 | B98: -0.38 | C98: 1.53 | D98: 1.73
A99: 208.67 | B99: -0.12 | C99: 0.26 | D99: -1.27
A100: 208.21 | B100: -0.46 | C100: -0.34 | D100: -0.6
A101: 208.21 | B101: 0 | C101: 0.46 | D101: 0.8
A102: 208 | B102: -0.21 | C102: -0.21 | D102: -0.67
A103: 208.17 | B103: 0.17 | C103: 0.38 | D103: 0.59
A104: 208.79 | B104: 0.62 | C104: 0.45 | D104: 0.07
A105: 209.08 | B105: 0.29 | C105: -0.33 | D105: -0.78
A106: 210.71 | B106: 1.63 | C106: 1.34 | D106: 1.67
A107: 213.46 | B107: 2.75 | C107: 1.12 | D107: -0.22
A108: 216.55 | B108: 3.09 | C108: 0.34 | D108: -0.78
A109: 220.58 | B109: 4.03 | C109: 0.94 | D109: 0.6
A110: 224.71 | B110: 4.13 | C110: 0.1 | D110: -0.84
A111: 228.84 | B111: 4.13 | C111: 0 | D111: -0.1
A112: 233.08 | B112: 4.24 | C112: 0.11 | D112: 0.11
A113: 238.1 | B113: 5.02 | C113: 0.78 | D113: 0.67
A114: 245.98 | B114: 7.88 | C114: 2.86 | D114: 2.08
A115: 257.38 | B115: 11.4 | C115: 3.52 | D115: 0.66
A116: 276.7 | B116: 19.32 | C116: 7.92 | D116: 4.4
A117: 310.19 | B117: 33.49 | C117: 14.17 | D117: 6.25
A118: 366.07 | B118: 55.88 | C118: 22.39 | D118: 8.22
A119: 461 | B119: 94.93 | C119: 39.05 | D119: 16.66
A120: 611.04 | B120: 150.04 | C120: 55.11 | D120: 16.06
A121: 667.68 | B121: 56.64 | C121: -93.4 | D121: -148.51
A122: 513.86 | B122: -153.82 | C122: -210.46 | D122: -117.06
A123: 406.73 | B123: -107.13 | C123: 46.69 | D123: 257.15
A124: 346.02 | B124: -60.71 | C124: 46.42 | D124: -0.27
A125: 302.04 | B125: -43.98 | C125: 16.73 | D125: -29.69
A126: 271.05 | B126: -30.99 | C126: 12.99 | D126: -3.74
A127: 248.4 | B127: -22.65 | C127: 8.34 | D127: -4.65
A128: 233.24 | B128: -15.16 | C128: 7.49 | D128: -0.85
A129: 222.73 | B129: -10.51 | C129: 4.65 | D129: -2.84
A130: 216.17 | B130: -6.56 | C130: 3.95 | D130: -0.7
A131: 212.28 | B131: =A131-A130 -> -3.89 | C131: 2.67 | D131: -1.28
A132: 210.23 | B132: -2.05 | C132: 1.84 | D132: -0.83
A133: 209.04 | B133: -1.19 | C133: 0.86 | D133: -0.98
A134: 208 | B134: -1.04 | C134: 0.15 | D134: -0.71
A135: 207.92 | B135: -0.08 | C135: 0.96 | D135: 0.81
A136: 207 | B136: -0.92 | C136: -0.84 | D136: -1.8
A137: 207.02 | B137: 0.02 | C137: 0.94 | D137: 1.78
A138: 207.19 | B138: 0.17 | C138: 0.15 | D138: -0.79
A139: 206.87 | B139: -0.32 | C139: -0.49 | D139: -0.64
A140: 206 | B140: -0.87 | C140: -0.55 | D140: -0.06
A141: 205.78 | B141: -0.22 | C141: 0.65 | D141: 1.2
A142: 205.78 | B142: 0 | C142: 0.22 | D142: -0.43
A143: 205.65 | B143: -0.13 | C143: -0.13 | D143: -0.35
A144: 205.54 | B144: -0.11 | C144: 0.02 | D144: 0.15
A145: 205.58 | B145: 0.04 | C145: 0.15 | D145: 0.13
A146: 205.33 | B146: -0.25 | C146: -0.29 | D146: -0.44
A147: 205.02 | B147: -0.31 | C147: -0.06 | D147: 0.23
A148: 205.18 | B148: 0.16 | C148: 0.47 | D148: 0.53
A149: 205.21 | B149: 0.03 | C149: -0.13 | D149: -0.6
A150: 205.21 | B150: 0 | C150: -0.03 | D150: 0.1
A151: 205.47 | B151: 0.26 | C151: 0.26 | D151: 0.29
A152: 205.58 | B152: 0.11 | C152: -0.15 | D152: -0.41
A153: 205.17 | B153: -0.41 | C153: -0.52 | D153: -0.37
A154: 205.79 | B154: 0.62 | C154: 1.03 | D154: 1.55
A155: 204.88 | B155: -0.91 | C155: -1.53 | D155: -2.56
A156: 204.79 | B156: -0.09 | C156: 0.82 | D156: 2.35
A157: 204.35 | B157: -0.44 | C157: -0.35 | D157: -1.17
A158: 204.03 | B158: -0.32 | C158: 0.12 | D158: 0.47
A159: 204 | B159: -0.03 | C159: 0.29 | D159: 0.17
A160: 204 | B160: 0 | C160: 0.03 | D160: -0.26
A161: 204 | B161: 0 | C161: 0 | D161: -0.03
A162: 203.79 | B162: -0.21 | C162: -0.21 | D162: -0.21
A163: 204 | B163: 0.21 | C163: 0.42 | D163: 0.63
A164: 203.67 | B164: -0.33 | C164: -0.54 | D164: -0.96
A165: 203.42 | B165: -0.25 | C165: 0.08 | D165: 0.62
A166: 203.62 | B166: 0.2 | C166: 0.45 | D166: 0.37
A167: 203.42 | B167: -0.2 | C167: -0.4 | D167: -0.85
A168: 202.99 | B168: -0.43 | C168: -0.23 | D168: 0.17
A169: 202.26 | B169: -0.73 | C169: -0.3 | D169: -0.07
A170: 202.21 | B170: -0.05 | C170: 0.68 | D170: 0.98
A171: 202.41 | B171: 0.2 | C171: 0.25 | D171: -0.43
A172: 201.98 | B172: -0.43 | C172: -0.63 | D172: -0.88
A173: 201.44 | B173: -0.54 | C173: -0.11 | D173: 0.52
A174: 201.21 | B174: -0.23 | C174: 0.31 | D174: 0.42
A175: 201 | B175: -0.21 | C175: 0.02 | D175: -0.29
A176: 201.2 | B176: 0.2 | C176: 0.41 | D176: 0.39
A177: 201.03 | B177: -0.17 | C177: -0.37 | D177: -0.78
A178: 200.61 | B178: -0.42 | C178: -0.25 | D178: 0.12
A179: 200.95 | B179: 0.34 | C179: 0.76 | D179: 1.01
A180: 200.29 | B180: -0.66 | C180: -1 | D180: -1.76
A181: 200.46 | B181: 0.17 | C181: 0.83 | D181: 1.83
A182: 200.79 | B182: 0.33 | C182: 0.16 | D182: -0.67
A183: 200.63 | B183: -0.16 | C183: -0.49 | D183: -0.65
A184: 200 | B184: -0.63 | C184: -0.47 | D184: 0.02
A185: 200.63 | B185: 0.63 | C185: 1.26 | D185: 1.73
A186: 200.41 | B186: -0.22 | C186: -0.85 | D186: -2.11
A187: 200.01 | B187: -0.4 | C187: -0.18 | D187: 0.67
A188: 200 | B188: -0.01 | C188: 0.39 | D188: 0.57
A189: 199.88 | B189: -0.12 | C189: -0.11 | D189: -0.5
A190: 199.21 | B190: -0.67 | C190: -0.55 | D190: -0.44
A191: 199.67 | B191: 0.46 | C191: 1.13 | D191: 1.68
A192: 199.98 | B192: 0.31 | C192: -0.15 | D192: -1.28
A193: 199.82 | B193: -0.16 | C193: -0.47 | D193: -0.32
A194: 199.38 | B194: -0.44 | C194: -0.28 | D194: 0.19
A195: 199.79 | B195: =A195-A194 -> 0.41 | C195: 0.85 | D195: 1.13
A196: 199.58 | B196: -0.21 | C196: -0.62 | D196: -1.47
A197: 199.79 | B197: 0.21 | C197: 0.42 | D197: 1.04
A198: 200 | B198: 0.21 | C198: 2.842170943e-14 | D198: -0.42
A199: 200.21 | B199: 0.21 | C199: 0 | D199: -2.842170943e-14
A200: 200.71 | B200: 0.5 | C200: 0.29 | D200: 0.29
... 50 more rows
